[Event "Test Tournament"]
[Site "Emanuel Lasker Arena"]
[Date "2024.04.09"]
[Round "2"]
[White "Girlfriend Chess"]
[Black "Mrs Florrick"]
[Result "1/2-1/2"]
[WhiteElo "1753"]
[BlackElo "1780"]
[Annotator "NA RC"]
[PlyCount "102"]
[EventDate "2024.04.09"]
[EventType "swiss (blitz)"]
[TimeControl "60"]

1. c4 {[%emt 0:00:01]} e5 {[%emt 0:00:01]} 2. Nc3 {[%emt 0:00:01]} Nf6 {[%emt 0:00:01]} 3. Nf3 {[%emt 0:00:01]} Nc6 {[%emt 0:00:01]} 4. g3 {[%emt 0:00:01]} Bb4 {[%emt 0:00:01]} 5. Bg2 {[%emt 0:00:01]} O-O {[%emt 0:00:01]} 6. O-O {[%emt 0:00:01]} Re8 {[%emt 0:00:01]} 7. d3 {[%emt 0:00:01]} Nd4 {[%emt 0:00:01]} 8. Bd2 {[%emt 0:00:01]} c6 {[%emt 0:00:04]} 9. Nxd4 {[%emt 0:00:01]} exd4 {[%emt 0:00:01]} 10. Ne4 {[%emt 0:00:04]} a5 {[%emt 0:00:04]} 11. Rc1 {[%emt 0:00:04]} h5 {[%emt 0:00:04]} 12. Bg5 {[%emt 0:00:07]} a4 {[%emt 0:00:03]} 13. c5 {[%emt 0:00:03]} d5 {[%emt 0:00:03]} 14. Bxf6 {[%emt 0:00:01]} gxf6 {[%emt 0:00:01]} 15. Nd6 {[%emt 0:00:01]} Re5 {[%emt 0:00:03]} 16. f4 {[%emt 0:00:03]} a3 {[%emt 0:00:03]} 17. fxe5 {[%emt 0:00:01]} axb2 {[%emt 0:00:01]} 18. Rxf6 {[%emt 0:00:03]} bxc1=N {[%emt 0:00:00]} 19. Qxc1 {[%emt 0:00:01]} Be6 {[%emt 0:00:02]} 20. Qh6 {[%emt 0:00:02]} Bxc5 {[%emt 0:00:01]} 21. Nxb7 {[%emt 0:00:01]} Qb6 {[%emt 0:00:02]} 22. Qg5+ {[%emt 0:00:02]} Kf8 {[%emt 0:00:01]} 23. Nxc5 {[%emt 0:00:01]} Qxc5 {[%emt 0:00:01]} 24. Rh6 {[%emt 0:00:01]} Ke8 {[%emt 0:00:02]} 25. Rh8+ {[%emt 0:00:01]} Qf8 {[%emt 0:00:01]} 26. Rxf8+ {[%emt 0:00:01]} Kxf8 {[%emt 0:00:01]} 27. Qxh5 {[%emt 0:00:01]} Rxa2 {[%emt 0:00:01]} 28. h4 {[%emt 0:00:01]} Ke8 {[%emt 0:00:01]} 29. Qh7 {[%emt 0:00:01]} Kd7 {[%emt 0:00:01]} 30. Bf3 {[%emt 0:00:01]} c5 {[%emt 0:00:01]} 31. h5 {[%emt 0:00:00]} c4 {[%emt 0:00:01]} 32. dxc4 {[%emt 0:00:01]} dxc4 {[%emt 0:00:01]} 33. Qd3 {[%emt 0:00:01]} cxd3 {[%emt 0:00:01]} 34. exd3 {[%emt 0:00:00]} Bf5 {[%emt 0:00:01]} 35. Bc6+ {[%emt 0:00:01]} Kxc6 {[%emt 0:00:01]} 36. h6 {[%emt 0:00:01]} Bxd3 {[%emt 0:00:01]} 37. e6 {[%emt 0:00:01]} fxe6 {[%emt 0:00:01]} 38. h7 {[%emt 0:00:00]} Bxh7 {[%emt 0:00:00]} 39. Kf1 {[%emt 0:00:01]} Bd3+ {[%emt 0:00:01]} 40. Ke1 {[%emt 0:00:01]} e5 {[%emt 0:00:01]} 41. Kd1 {[%emt 0:00:00]} Rg2 {[%emt 0:00:01]} 42. g4 {[%emt 0:00:00]} Rxg4 {[%emt 0:00:00]} 43. Kd2 {[%emt 0:00:00]} Rg3 {[%emt 0:00:00]} 44. Ke1 {[%emt 0:00:00]} Rg2 {[%emt 0:00:01]} 45. Kd1 {[%emt 0:00:00]} e4 {[%emt 0:00:00]} 46. Ke1 {[%emt 0:00:00]} e3 {[%emt 0:00:00]} 47. Kd1 {[%emt 0:00:00]} Rb2 {[%emt 0:00:00]} 48. Kc1 {[%emt 0:00:00]} Ra2 {[%emt 0:00:00]} 49. Kd1 {[%emt 0:00:00]} Rb2 {[%emt 0:00:00]} 50. Ke1 {[%emt 0:00:00]} Ra2 {[%emt 0:00:00]} 51. Kd1 {[%emt 0:00:00]} Rb2 {[%emt 0:00:00] (Lag: Av=0.06s, max=0.6s)} 1/2-1/2

[Event "Test Tournament"]
[Site "Emanuel Lasker Arena"]
[Date "2024.04.09"]
[Round "2"]
[White "Girlfriend Chess"]
[Black "LiliBeth"]
[Result "1-0"]
[WhiteElo "1752"]
[BlackElo "1853"]
[Annotator "NA RC"]
[PlyCount "95"]
[EventDate "2024.04.09"]
[EventType "swiss (blitz)"]
[TimeControl "60"]

1. d4 {[%emt 0:00:02]} d5 {[%emt 0:00:02]} 2. c4 {[%emt 0:00:01]} e6 {[%emt 0:00:01]} 3. Nc3 {[%emt 0:00:01]} c5 {[%emt 0:00:01]} 4. cxd5 {[%emt 0:00:01]} exd5 {[%emt 0:00:02]} 5. Nf3 {[%emt 0:00:01]} Nc6 {[%emt 0:00:01]} 6. dxc5 {[%emt 0:00:01]} d4 {[%emt 0:00:01]} 7. Na4 {[%emt 0:00:00]} Bxc5 {[%emt 0:00:01]} 8. Nxc5 {[%emt 0:00:01]} Qa5+ {[%emt 0:00:01]} 9. Bd2 {[%emt 0:00:01]} Qxc5 {[%emt 0:00:01]} 10. Rc1 {[%emt 0:00:01]} Qd5 {[%emt 0:00:04]} 11. Qa4 {[%emt 0:00:02]} Nf6 {[%emt 0:00:03]} 12. g3 {[%emt 0:00:01]} d3 {[%emt 0:00:03]} 13. Bg2 {[%emt 0:00:04]} O-O {[%emt 0:00:03]} 14. O-O {[%emt 0:00:03]} dxe2 {[%emt 0:00:01]} 15. Rfe1 {[%emt 0:00:01]} Re8 {[%emt 0:00:03]} 16. Nd4 {[%emt 0:00:03]} Qxd4 {[%emt 0:00:02]} 17. Bxc6 {[%emt 0:00:01]} Qxd2 {[%emt 0:00:01]} 18. Bxe8 {[%emt 0:00:01]} Be6 {[%emt 0:00:03]} 19. Bb5 {[%emt 0:00:01]} Qxb2 {[%emt 0:00:01]} 20. Bxe2 {[%emt 0:00:01]} Qxa2 {[%emt 0:00:01]} 21. Qxa2 {[%emt 0:00:01]} Bxa2 {[%emt 0:00:01]} 22. Rc7 {[%emt 0:00:03]} Be6 {[%emt 0:00:02]} 23. Rxb7 {[%emt 0:00:01]} a5 {[%emt 0:00:01]} 24. Bb5 {[%emt 0:00:03]} h5 {[%emt 0:00:02]} 25. h4 {[%emt 0:00:03]} g6 {[%emt 0:00:02]} 26. Re5 {[%emt 0:00:02]} a4 {[%emt 0:00:02]} 27. Bd3 {[%emt 0:00:02]} Rd8 {[%emt 0:00:02]} 28. Bxg6 {[%emt 0:00:01]} Rd1+ {[%emt 0:00:01]} 29. Kg2 {[%emt 0:00:01]} a3 {[%emt 0:00:01]} 30. Bxh5 {[%emt 0:00:01]} Nxh5 {[%emt 0:00:01]} 31. Rxh5 {[%emt 0:00:01]} Bd5+ {[%emt 0:00:01]} 32. Rxd5 {[%emt 0:00:01]} Rxd5 {[%emt 0:00:00]} 33. Ra7 {[%emt 0:00:01]} Kh7 {[%emt 0:00:01]} 34. Rxa3 {[%emt 0:00:01]} Kh6 {[%emt 0:00:01]} 35. Ra7 {[%emt 0:00:01]} Kg6 {[%emt 0:00:01]} 36. Kf1 {[%emt 0:00:01]} f6 {[%emt 0:00:01]} 37. f3 {[%emt 0:00:01]} Rd4 {[%emt 0:00:01]} 38. Rb7 {[%emt 0:00:01]} Kh5 {[%emt 0:00:01]} 39. Ra7 {[%emt 0:00:01]} Rd5 {[%emt 0:00:01]} 40. Rc7 {[%emt 0:00:01]} Rd1+ {[%emt 0:00:01]} 41. Ke2 {[%emt 0:00:01]} Rd6 {[%emt 0:00:01]} 42. f4 {[%emt 0:00:01]} Rd5 {[%emt 0:00:01]} 43. Rb7 {[%emt 0:00:01]} Rd4 {[%emt 0:00:01]} 44. Ra7 {[%emt 0:00:01]} Rc4 {[%emt 0:00:01]} 45. Kd2 {[%emt 0:00:01]} Rc8 {[%emt 0:00:00]} 46. Rb7 {[%emt 0:00:01]} Rh8 {[%emt 0:00:01]} 47. Kd1 {[%emt 0:00:01]} Kg4 {[%emt 0:00:01] '} 48. Rh7 {[%emt 0:00:01] (Lag: Av=0.06s, max=0.3s)} 1-0

[Event "Test Tournament"]
[Site "Emanuel Lasker Arena"]
[Date "2024.04.09"]
[Round "2"]
[White "Dominatrix"]
[Black "Klaus Junge"]
[Result "0-1"]
[WhiteElo "1733"]
[BlackElo "1620"]
[Annotator "NA RC"]
[PlyCount "84"]
[EventDate "2024.04.09"]
[EventType "swiss (blitz)"]
[TimeControl "60"]

1. e4 {[%emt 0:00:01]} e5 {[%emt 0:00:01]} 2. Nf3 {[%emt 0:00:01]} Nc6 {[%emt 0:00:01]} 3. Bb5 {[%emt 0:00:00]} a6 {[%emt 0:00:01]} 4. Ba4 {[%emt 0:00:01]} Nf6 {[%emt 0:00:01]} 5. O-O {[%emt 0:00:01]} Nxe4 {[%emt 0:00:01]} 6. Re1 {[%emt 0:00:02]} Nc5 {[%emt 0:00:01]} 7. Bxc6 {[%emt 0:00:01]} dxc6 {[%emt 0:00:01]} 8. d4 {[%emt 0:00:01]} Ne6 {[%emt 0:00:01]} 9. Rxe5 {[%emt 0:00:01]} Bd6 {[%emt 0:00:01]} 10. Re4 {[%emt 0:00:01]} h6 {[%emt 0:00:04]} 11. c4 {[%emt 0:00:02]} O-O {[%emt 0:00:04]} 12. h4 {[%emt 0:00:04]} f5 {[%emt 0:00:04]} 13. c5 {[%emt 0:00:12]} fxe4 {[%emt 0:00:01]} 14. cxd6 {[%emt 0:00:01]} exf3 {[%emt 0:00:01]} 15. Nc3 {[%emt 0:00:03]} Qxh4 {[%emt 0:00:07]} 16. g3 {[%emt 0:00:02]} Qh3 {[%emt 0:00:03]} 17. Qf1 {[%emt 0:00:01]} Qxf1+ {[%emt 0:00:01]} 18. Kxf1 {[%emt 0:00:01]} Nxd4 {[%emt 0:00:00]} 19. dxc7 {[%emt 0:00:01]} Bh3+ {[%emt 0:00:02]} 20. Kg1 {[%emt 0:00:01]} Ne2+ {[%emt 0:00:03]} 21. Kh1 {[%emt 0:00:01]} Rac8 {[%emt 0:00:03]} 22. Kh2 {[%emt 0:00:02]} b5 {[%emt 0:00:01]} 23. Kxh3 {[%emt 0:00:01]} Rxc7 {[%emt 0:00:02]} 24. Ne4 {[%emt 0:00:01]} g5 {[%emt 0:00:02]} 25. b4 {[%emt 0:00:02]} Re7 {[%emt 0:00:02]} 26. Bb2 {[%emt 0:00:02]} g4+ {[%emt 0:00:02]} 27. Kxg4 {[%emt 0:00:01]} Rxe4+ {[%emt 0:00:01]} 28. Kh5 {[%emt 0:00:01]} Rf5+ {[%emt 0:00:01]} 29. Kg6 {[%emt 0:00:01]} Rg5+ {[%emt 0:00:01]} 30. Kxh6 {[%emt 0:00:01]} Rd5 {[%emt 0:00:01]} 31. Kg6 {[%emt 0:00:01]} Rg4+ {[%emt 0:00:01]} 32. Kh6 {[%emt 0:00:01]} Nxg3 {[%emt 0:00:01]} 33. fxg3 {[%emt 0:00:01]} Rd2 {[%emt 0:00:01]} 34. Bf6 {[%emt 0:00:01]} Rh2+ {[%emt 0:00:01]} 35. Bh4 {[%emt 0:00:01]} Rxg3 {[%emt 0:00:00]} 36. Rd1 {[%emt 0:00:01]} Rxa2 {[%emt 0:00:00]} 37. Bxg3 {[%emt 0:00:00]} Rg2 {[%emt 0:00:01]} 38. Be5 {[%emt 0:00:01]} Kf7 {[%emt 0:00:01]} 39. Rd6 {[%emt 0:00:01]} Re2 {[%emt 0:00:01]} 40. Bd4 {[%emt 0:00:01]} Ke7 {[%emt 0:00:01]} 41. Rxc6 {[%emt 0:00:01]} Rh2+ {[%emt 0:00:01]} 42. Kg6 {[%emt 0:00:00] .} f2 {[%emt 0:00:01]} 0-1

[Event "Test Tournament"]
[Site "Emanuel Lasker Arena"]
[Date "2024.04.09"]
[Round "2"]
[White "Dominatrix"]
[Black "Brutus"]
[Result "0-1"]
[WhiteElo "1733"]
[BlackElo "2041"]
[Annotator "RC"]
[PlyCount "50"]
[EventDate "2024.04.09"]
[EventType "swiss (blitz)"]
[TimeControl "60"]

1. e4 {[%emt 0:00:01]} Nf6 {[%emt 0:00:01]} 2. e5 {[%emt 0:00:01]} Nd5 {[%emt 0:00:01]} 3. d4 {[%emt 0:00:02]} d6 {[%emt 0:00:01]} 4. c4 {[%emt 0:00:01]} Nb6 {[%emt 0:00:00]} 5. f4 {[%emt 0:00:01]} dxe5 {[%emt 0:00:01]} 6. fxe5 {[%emt 0:00:01]} Bf5 {[%emt 0:00:01]} 7. Nc3 {[%emt 0:00:01]} Nc6 {[%emt 0:00:01]} 8. g4 {[%emt 0:00:01]} Bg6 {[%emt 0:00:01]} 9. Nf3 {[%emt 0:00:02]} Nb4 {[%emt 0:00:01]} 10. c5 {[%emt 0:00:04]} Nc2+ {[%emt 0:00:01]} 11. Kf2 {[%emt 0:00:03]} Nxa1 {[%emt 0:00:01]} 12. cxb6 {[%emt 0:00:01]} axb6 {[%emt 0:00:01]} 13. Bg5 {[%emt 0:00:03]} Nc2 {[%emt 0:00:01]} 14. e6 {[%emt 0:00:03]} fxe6 {[%emt 0:00:07]} 15. h4 {[%emt 0:00:03]} h6 {[%emt 0:00:07]} 16. Bc4 {[%emt 0:00:10]} hxg5 {[%emt 0:00:01]} 17. Bxe6 {[%emt 0:00:01]} gxh4 {[%emt 0:00:03]} 18. Nb5 {[%emt 0:00:02]} Be4 {[%emt 0:00:03]} 19. Ne5 {[%emt 0:00:02]} Qb8 {[%emt 0:00:01]} 20. Nd7 {[%emt 0:00:01]} Qd8 {[%emt 0:00:03]} 21. Rf1 {[%emt 0:00:01]} Rxa2 {[%emt 0:00:02]} 22. Ne5 {[%emt 0:00:01]} Qb8 {[%emt 0:00:02]} 23. Bxa2 {[%emt 0:00:01]} c6 {[%emt 0:00:02]} 24. Nd7 {[%emt 0:00:06]} Qf4+ {[%emt 0:00:01]} 25. Ke2 {[%emt 0:00:01]} Qe3# {[%emt 0:00:01] (Lag: Av=0.06s, max=0.2s)} 0-1

[Event "Test Tournament"]
[Site "Emanuel Lasker Arena"]
[Date "2024.04.09"]
[Round "2"]
[White "Dominatrix"]
[Black "Roberta Draper"]
[Result "0-1"]
[WhiteElo "1733"]
[BlackElo "1620"]
[Annotator "NA RC"]
[PlyCount "28"]
[EventDate "2024.04.09"]
[EventType "swiss (blitz)"]
[TimeControl "60"]

1. e4 {[%emt 0:00:02]} c5 {[%emt 0:00:01]} 2. Nf3 {[%emt 0:00:01]} d6 {[%emt 0:00:01]} 3. d4 {[%emt 0:00:02]} cxd4 {[%emt 0:00:01]} 4. Nxd4 {[%emt 0:00:01]} Nf6 {[%emt 0:00:01]} 5. Nc3 {[%emt 0:00:01]} a6 {[%emt 0:00:01]} 6. Bg5 {[%emt 0:00:01]} e6 {[%emt 0:00:01]} 7. Qf3 {[%emt 0:00:01]} Nbd7 {[%emt 0:00:01]} 8. O-O-O {[%emt 0:00:01]} Qc7 {[%emt 0:00:01]} 9. h4 {[%emt 0:00:01]} b5 {[%emt 0:00:01]} 10. a4 {[%emt 0:00:02]} b4 {[%emt 0:00:04]} 11. Bb5 {[%emt 0:00:09]} bxc3 {[%emt 0:00:01]} 12. e5 {[%emt 0:00:03]} Bb7 {[%emt 0:00:04]} 13. Bc6 {[%emt 0:00:04]} Qb6 {[%emt 0:00:05]} 14. exf6 {[%emt 0:00:02]} Qxb2# {[%emt 0:00:03] (Lag: Av=0.08s, max=0.5s)} 0-1

[Event "Test Tournament"]
[Site "Emanuel Lasker Arena"]
[Date "2024.04.09"]
[Round "2"]
[White "Patemkin"]
[Black "Botwinzig"]
[Result "1-0"]
[WhiteElo "1680"]
[BlackElo "1810"]
[Annotator "NA RC"]
[PlyCount "41"]
[EventDate "2024.04.09"]
[EventType "swiss (blitz)"]
[TimeControl "60"]

1. d4 {[%emt 0:00:01]} Nf6 {[%emt 0:00:01]} 2. c4 {[%emt 0:00:01]} e6 {[%emt 0:00:00]} 3. g3 {[%emt 0:00:01]} d5 {[%emt 0:00:01]} 4. Bg2 {[%emt 0:00:01]} Be7 {[%emt 0:00:01]} 5. Nf3 {[%emt 0:00:01]} O-O {[%emt 0:00:01]} 6. O-O {[%emt 0:00:01]} dxc4 {[%emt 0:00:00]} 7. Qc2 {[%emt 0:00:01]} a6 {[%emt 0:00:01]} 8. Rd1 {[%emt 0:00:01]} b5 {[%emt 0:00:01]} 9. Ne5 {[%emt 0:00:01]} c6 {[%emt 0:00:01]} 10. Nc3 {[%emt 0:00:03]} Nd5 {[%emt 0:00:04]} 11. b3 {[%emt 0:00:02]} Nd7 {[%emt 0:00:04]} 12. Nxc6 {[%emt 0:00:03]} cxb3 {[%emt 0:00:01]} 13. Qxb3 {[%emt 0:00:01]} Nxc3 {[%emt 0:00:01]} 14. Nxd8 {[%emt 0:00:01]} Nxe2+ {[%emt 0:00:02]} 15. Kf1 {[%emt 0:00:01]} Nxc1 {[%emt 0:00:01]} 16. Rdxc1 {[%emt 0:00:01]} Rxd8 {[%emt 0:00:02]} 17. Bxa8 {[%emt 0:00:01]} g6 {[%emt 0:00:04]} 18. d5 {[%emt 0:00:03]} Nb6 {[%emt 0:00:03]} 19. Rc7 {[%emt 0:00:05]} Nxd5 {[%emt 0:00:01]} 20. Bxd5 {[%emt 0:00:01]} exd5 {[%emt 0:00:01]} 21. Rxe7 {[%emt 0:00:02] Botwinzig resigns (Lag: Av=0.06s, max=0.4s)} 1-0

[Event "Test Tournament"]
[Site "Emanuel Lasker Arena"]
[Date "2024.04.09"]
[Round "2"]
[White "CheckMaid"]
[Black "Triskaidekaphobe"]
[Result "0-1"]
[WhiteElo "1650"]
[BlackElo "1620"]
[Annotator "NA RC"]
[PlyCount "56"]
[EventDate "2024.04.09"]
[EventType "swiss (blitz)"]
[TimeControl "60"]

1. e4 {[%emt 0:00:01]} c5 {[%emt 0:00:01]} 2. Nf3 {[%emt 0:00:01]} d6 {[%emt 0:00:01]} 3. d4 {[%emt 0:00:01]} cxd4 {[%emt 0:00:01]} 4. Nxd4 {[%emt 0:00:01]} Nf6 {[%emt 0:00:00]} 5. Nc3 {[%emt 0:00:01]} g6 {[%emt 0:00:01]} 6. Be3 {[%emt 0:00:01]} Bg7 {[%emt 0:00:01]} 7. f3 {[%emt 0:00:01]} O-O {[%emt 0:00:01]} 8. Bc4 {[%emt 0:00:01]} Nc6 {[%emt 0:00:01]} 9. h3 {[%emt 0:00:01]} Qb6 {[%emt 0:00:01]} 10. Bb3 {[%emt 0:00:02]} Nxe4 {[%emt 0:00:06]} 11. Nd5 {[%emt 0:00:04]} Qa5+ {[%emt 0:00:03]} 12. c3 {[%emt 0:00:02]} Ng3 {[%emt 0:00:08]} 13. Rh2 {[%emt 0:00:04]} Re8 {[%emt 0:00:03]} 14. Qd3 {[%emt 0:00:04]} Bd7 {[%emt 0:00:03]} 15. h4 {[%emt 0:00:03]} Ne5 {[%emt 0:00:03]} 16. Qc2 {[%emt 0:00:03]} Rac8 {[%emt 0:00:02]} 17. h5 {[%emt 0:00:03]} Rc4 {[%emt 0:00:01]} 18. Bxc4 {[%emt 0:00:01]} Nxc4 {[%emt 0:00:01]} 19. Bf4 {[%emt 0:00:03]} e5 {[%emt 0:00:02]} 20. Bxg3 {[%emt 0:00:01]} exd4+ {[%emt 0:00:01]} 21. Kf2 {[%emt 0:00:02]} Qxd5 {[%emt 0:00:01]} 22. Re1 {[%emt 0:00:02]} d3 {[%emt 0:00:02]} 23. Rxe8+ {[%emt 0:00:01]} Bxe8 {[%emt 0:00:01]} 24. Qc1 {[%emt 0:00:02]} d2 {[%emt 0:00:01]} 25. Qc2 {[%emt 0:00:01]} d1=Q {[%emt 0:00:01]} 26. Qxd1 {[%emt 0:00:01]} Qxd1 {[%emt 0:00:01]} 27. b3 {[%emt 0:00:01]} Bxc3 {[%emt 0:00:01]} 28. bxc4 {[%emt 0:00:01]} Qe1# {[%emt 0:00:01] (Lag: Av=0.06s, max=0.5s)} 0-1

[Event "Test Tournament"]
[Site "Emanuel Lasker Arena"]
[Date "2024.04.09"]
[Round "2"]
[White "CheckMaid"]
[Black "Toby Ziegler"]
[Result "0-1"]
[WhiteElo "1645"]
[BlackElo "2064"]
[Annotator "RC"]
[PlyCount "88"]
[EventDate "2024.04.09"]
[EventType "swiss (blitz)"]
[TimeControl "60"]

1. e4 {[%emt 0:00:01]} e5 {[%emt 0:00:01]} 2. Nf3 {[%emt 0:00:01]} Nc6 {[%emt 0:00:01]} 3. Bb5 {[%emt 0:00:01]} a6 {[%emt 0:00:01]} 4. Ba4 {[%emt 0:00:01]} Nf6 {[%emt 0:00:01]} 5. O-O {[%emt 0:00:01]} Be7 {[%emt 0:00:01]} 6. Re1 {[%emt 0:00:02]} b5 {[%emt 0:00:01]} 7. Bb3 {[%emt 0:00:01]} O-O {[%emt 0:00:01]} 8. c3 {[%emt 0:00:01]} d6 {[%emt 0:00:01]} 9. d4 {[%emt 0:00:01]} Bg4 {[%emt 0:00:01]} 10. Be3 {[%emt 0:00:02]} exd4 {[%emt 0:00:01]} 11. cxd4 {[%emt 0:00:01]} Na5 {[%emt 0:00:01]} 12. Bc2 {[%emt 0:00:02]} Nc4 {[%emt 0:00:01]} 13. Bc1 {[%emt 0:00:01]} c5 {[%emt 0:00:01]} 14. b3 {[%emt 0:00:01]} Na5 {[%emt 0:00:01]} 15. Nbd2 {[%emt 0:00:01]} cxd4 {[%emt 0:00:01]} 16. h3 {[%emt 0:00:01]} Bh5 {[%emt 0:00:04]} 17. g4 {[%emt 0:00:01]} Nxg4 {[%emt 0:00:01]} 18. hxg4 {[%emt 0:00:01]} Bxg4 {[%emt 0:00:01]} 19. e5 {[%emt 0:00:05]} dxe5 {[%emt 0:00:03]} 20. Rxe5 {[%emt 0:00:00]} d3 {[%emt 0:00:01]} 21. Re6 {[%emt 0:00:10]} dxc2 {[%emt 0:00:01]} 22. Qxc2 {[%emt 0:00:01]} Rc8 {[%emt 0:00:01]} 23. Qc7 {[%emt 0:00:01]} Qxc7 {[%emt 0:00:01]} 24. Rxa6 {[%emt 0:00:01]} Bxf3 {[%emt 0:00:01]} 25. Nxf3 {[%emt 0:00:02]} Rfd8 {[%emt 0:00:01]} 26. Bg5 {[%emt 0:00:01]} Qc3 {[%emt 0:00:01]} 27. Bxe7 {[%emt 0:00:01]} Nc6 {[%emt 0:00:01]} 28. Bxd8 {[%emt 0:00:01]} Ne5 {[%emt 0:00:00]} 29. Ng5 {[%emt 0:00:02]} Qxa1+ {[%emt 0:00:01]} 30. Kh2 {[%emt 0:00:01]} b4 {[%emt 0:00:01]} 31. Be7 {[%emt 0:00:02]} Qd4 {[%emt 0:00:01]} 32. Kg3 {[%emt 0:00:01]} h5 {[%emt 0:00:02]} 33. Rd6 {[%emt 0:00:02]} h4+ {[%emt 0:00:02]} 34. Kg2 {[%emt 0:00:01]} Qf4 {[%emt 0:00:02]} 35. a4 {[%emt 0:00:01]} bxa3 {[%emt 0:00:02]} 36. b4 {[%emt 0:00:01]} a2 {[%emt 0:00:02]} 37. Rd1 {[%emt 0:00:01]} Qg4+ {[%emt 0:00:01]} 38. Kh2 {[%emt 0:00:01]} Qxd1 {[%emt 0:00:01]} 39. Ne4 {[%emt 0:00:01]} Nf3+ {[%emt 0:00:01]} 40. Kg2 {[%emt 0:00:01]} Ne1+ {[%emt 0:00:01]} 41. Kh3 {[%emt 0:00:01]} a1=Q {[%emt 0:00:01]} 42. Kxh4 {[%emt 0:00:00]} Qe5 {[%emt 0:00:01]} 43. Ng3 {[%emt 0:00:01]} Qd7 {[%emt 0:00:01]} 44. Nh5 {[%emt 0:00:01]} Ng2# {[%emt 0:00:01] (Lag: Av=0.07s, max=0.8s)} 0-1

[Event "Test Tournament"]
[Site "Emanuel Lasker Arena"]
[Date "2024.04.09"]
[Round "2"]
[White "CheckMaid"]
[Black "Sunset"]
[Result "0-1"]
[WhiteElo "1645"]
[BlackElo "1878"]
[Annotator "NA RC"]
[PlyCount "68"]
[EventDate "2024.04.09"]
[EventType "swiss (blitz)"]
[TimeControl "60"]

1. e4 {[%emt 0:00:01]} e5 {[%emt 0:00:01]} 2. Nf3 {[%emt 0:00:01]} Nc6 {[%emt 0:00:01]} 3. Bb5 {[%emt 0:00:01]} a6 {[%emt 0:00:01]} 4. Ba4 {[%emt 0:00:01]} Nf6 {[%emt 0:00:01]} 5. O-O {[%emt 0:00:01]} b5 {[%emt 0:00:01]} 6. Bb3 {[%emt 0:00:05]} Nxe4 {[%emt 0:00:01]} 7. Bd5 {[%emt 0:00:01]} Ng5 {[%emt 0:00:01]} 8. h4 {[%emt 0:00:09]} Ne6 {[%emt 0:00:04]} 9. h5 {[%emt 0:00:01]} Nf4 {[%emt 0:00:04]} 10. d4 {[%emt 0:00:09]} Nxd5 {[%emt 0:00:01]} 11. dxe5 {[%emt 0:00:01]} Ncb4 {[%emt 0:00:04]} 12. a3 {[%emt 0:00:02]} Bc5 {[%emt 0:00:03]} 13. axb4 {[%emt 0:00:01]} Nxb4 {[%emt 0:00:01]} 14. Bg5 {[%emt 0:00:02]} Be7 {[%emt 0:00:06]} 15. Qd4 {[%emt 0:00:02]} Nxc2 {[%emt 0:00:01]} 16. Qd5 {[%emt 0:00:02]} Bxg5 {[%emt 0:00:03]} 17. Qxa8 {[%emt 0:00:01]} O-O {[%emt 0:00:03]} 18. Rxa6 {[%emt 0:00:01]} Bxa6 {[%emt 0:00:01]} 19. Qxa6 {[%emt 0:00:01]} c6 {[%emt 0:00:02]} 20. g4 {[%emt 0:00:01]} h6 {[%emt 0:00:02]} 21. Nc3 {[%emt 0:00:01]} b4 {[%emt 0:00:02]} 22. Ne4 {[%emt 0:00:01]} Bf4 {[%emt 0:00:02]} 23. Nd6 {[%emt 0:00:02]} b3 {[%emt 0:00:01]} 24. Qc4 {[%emt 0:00:01]} Be3 {[%emt 0:00:02]} 25. fxe3 {[%emt 0:00:01]} Nxe3 {[%emt 0:00:01]} 26. Qxb3 {[%emt 0:00:01]} Nxf1 {[%emt 0:00:01]} 27. Kxf1 {[%emt 0:00:01]} Qa5 {[%emt 0:00:01]} 28. Nf5 {[%emt 0:00:01]} Kh8 {[%emt 0:00:01]} 29. g5 {[%emt 0:00:01]} Qa1+ {[%emt 0:00:01]} 30. Kf2 {[%emt 0:00:01]} Qb1 {[%emt 0:00:01]} 31. Ne7 {[%emt 0:00:01]} Qc1 {[%emt 0:00:01]} 32. Qb6 {[%emt 0:00:01]} Re8 {[%emt 0:00:01]} 33. b4 {[%emt 0:00:01]} hxg5 {[%emt 0:00:01]} 34. Qc7 {[%emt 0:00:01] .} Qd1 {[%emt 0:00:01]} 0-1

[Event "Test Tournament"]
[Site "Emanuel Lasker Arena"]
[Date "2024.04.09"]
[Round "2"]
[White "Bauernklopper"]
[Black "Stratospheric"]
[Result "1/2-1/2"]
[WhiteElo "1620"]
[BlackElo "1620"]
[Annotator "NA RC"]
[PlyCount "110"]
[EventDate "2024.04.09"]
[EventType "swiss (blitz)"]
[TimeControl "60"]

1. d4 {[%emt 0:00:01]} d5 {[%emt 0:00:01]} 2. c4 {[%emt 0:00:01]} dxc4 {[%emt 0:00:01]} 3. Nf3 {[%emt 0:00:01]} Nf6 {[%emt 0:00:01]} 4. e3 {[%emt 0:00:01]} e6 {[%emt 0:00:01]} 5. Bxc4 {[%emt 0:00:01]} c5 {[%emt 0:00:01]} 6. O-O {[%emt 0:00:01]} a6 {[%emt 0:00:01]} 7. a4 {[%emt 0:00:01]} Nc6 {[%emt 0:00:01]} 8. Qe2 {[%emt 0:00:01]} Qc7 {[%emt 0:00:01]} 9. Rd1 {[%emt 0:00:01]} Bd6 {[%emt 0:00:01]} 10. Nc3 {[%emt 0:00:01]} O-O {[%emt 0:00:01]} 11. h3 {[%emt 0:00:01]} b6 {[%emt 0:00:01]} 12. d5 {[%emt 0:00:01]} exd5 {[%emt 0:00:01]} 13. Nxd5 {[%emt 0:00:00]} Nxd5 {[%emt 0:00:01]} 14. Bxd5 {[%emt 0:00:01]} Bb7 {[%emt 0:00:01]} 15. b4 {[%emt 0:00:02]} cxb4 {[%emt 0:00:01]} 16. Rb1 {[%emt 0:00:04]} Na5 {[%emt 0:00:01]} 17. e4 {[%emt 0:00:04]} Bxd5 {[%emt 0:00:03]} 18. Rxd5 {[%emt 0:00:01]} Qc4 {[%emt 0:00:04]} 19. Qxc4 {[%emt 0:00:04]} Nxc4 {[%emt 0:00:01]} 20. Nd2 {[%emt 0:00:03]} Nxd2 {[%emt 0:00:01]} 21. Bxd2 {[%emt 0:00:01]} Bc7 {[%emt 0:00:01]} 22. Bxb4 {[%emt 0:00:01]} Rfd8 {[%emt 0:00:05]} 23. Rd2 {[%emt 0:00:03]} Rxd2 {[%emt 0:00:03]} 24. Bxd2 {[%emt 0:00:01]} Re8 {[%emt 0:00:02]} 25. f3 {[%emt 0:00:02]} f6 {[%emt 0:00:02]} 26. Kf2 {[%emt 0:00:02]} Bd6 {[%emt 0:00:02]} 27. a5 {[%emt 0:00:02]} b5 {[%emt 0:00:02]} 28. Bb4 {[%emt 0:00:01]} Bf8 {[%emt 0:00:02]} 29. Bxf8 {[%emt 0:00:01]} Kxf8 {[%emt 0:00:01]} 30. Rc1 {[%emt 0:00:01]} b4 {[%emt 0:00:01]} 31. Rc6 {[%emt 0:00:01]} Ra8 {[%emt 0:00:01]} 32. Rb6 {[%emt 0:00:01]} Rd8 {[%emt 0:00:01]} 33. Rxa6 {[%emt 0:00:01]} Rb8 {[%emt 0:00:01]} 34. Rb6 {[%emt 0:00:01]} Rxb6 {[%emt 0:00:01]} 35. axb6 {[%emt 0:00:01]} b3 {[%emt 0:00:01]} 36. b7 {[%emt 0:00:01]} b2 {[%emt 0:00:01]} 37. b8=R+ {[%emt 0:00:01]} Kf7 {[%emt 0:00:01]} 38. Rxb2 {[%emt 0:00:01]} f5 {[%emt 0:00:01]} 39. e5 {[%emt 0:00:01]} h6 {[%emt 0:00:01]} 40. Kg3 {[%emt 0:00:01]} Ke6 {[%emt 0:00:01]} 41. Re2 {[%emt 0:00:01]} g5 {[%emt 0:00:01]} 42. h4 {[%emt 0:00:01]} f4+ {[%emt 0:00:01]} 43. Kg4 {[%emt 0:00:01]} gxh4 {[%emt 0:00:00]} 44. Kxf4 {[%emt 0:00:01]} h3 {[%emt 0:00:01]} 45. gxh3 {[%emt 0:00:00]} h5 {[%emt 0:00:00]} 46. Re1 {[%emt 0:00:00]} h4 {[%emt 0:00:00]} 47. Kg4 {[%emt 0:00:00]} Kf7 {[%emt 0:00:00]} 48. Kxh4 {[%emt 0:00:00]} Ke6 {[%emt 0:00:00]} 49. f4 {[%emt 0:00:01]} Kf5 {[%emt 0:00:00]} 50. e6 {[%emt 0:00:00]} Kxf4 {[%emt 0:00:00]} 51. e7 {[%emt 0:00:00]} Kf5 {[%emt 0:00:00]} 52. e8=Q {[%emt 0:00:00]} Kf6 {[%emt 0:00:00]} 53. Qd8+ {[%emt 0:00:01]} Kg7 {[%emt 0:00:01]} 54. Re3 {[%emt 0:00:00]} Kf7 {[%emt 0:00:01]} 55. Qf6+ {[%emt 0:00:01] .} Kxf6 {[%emt 0:00:01]} 1/2-1/2